[Event "WchT 10th"]
[Site "Tsaghkadzor"]
[Date "2015.04.27"]
[Round "8.1"]
[White "Harikrishna, Pentala"]
[Black "Aronian, Levon"]
[Result "1/2-1/2"]
[ECO "D38"]
[WhiteElo "2731"]
[BlackElo "2770"]
[PlyCount "36"]
[EventDate "2015.04.19"]
[EventType "team-tourn"]
[EventRounds "9"]
[EventCountry "ARM"]
[SourceTitle "CBM 166"]
[Source "ChessBase"]
[SourceDate "2015.05.11"]
[SourceVersion "1"]
[SourceVersionDate "2015.05.11"]
[SourceQuality "1"]
[WhiteTeam "India"]
[BlackTeam "Armenia"]
[WhiteTeamCountry "IND"]
[BlackTeamCountry "ARM"]
[TimeControl "40/5400+30:1800+30"]

1. Nf3 {[%emt 0:00:00]} d5 {[%emt 0:00:00]} 2. d4 {[%emt 0:00:00]} Nf6 {
[%emt 0:00:00]} 3. c4 {[%emt 0:00:00]} e6 {[%emt 0:00:00]} 4. Nc3 {[%emt 0:00:
00]} Bb4 {[%emt 0:00:06]} 5. Bg5 {[%emt 0:00:01]} h6 {[%emt 0:00:25]} 6. Bxf6 {
[%emt 0:00:06]} Qxf6 {[%emt 0:00:04]} 7. e3 {[%emt 0:00:11]} O-O {[%emt 0:00:
10]} 8. Rc1 {[%emt 0:00:05]} Nd7 {[%emt 0:00:53]} 9. Qb3 {[%emt 0:07:40]} Bxc3+
{[%emt 0:00:28]} 10. Qxc3 {[%emt 0:00:29]} c6 {[%emt 0:02:51]} 11. b4 {[%emt 0:
07:05]} dxc4 {[%emt 0:13:25]} 12. Bxc4 {[%emt 0:01:15]} b6 {[%emt 0:00:22]} 13.
O-O {[%emt 0:16:01]} Bb7 {[%emt 0:00:26]} 14. Rfd1 {[%emt 0:00:25]} Qe7 {
[%emt 0:01:43]} 15. Be2 {[%emt 0:05:42]} Rfc8 {[%emt 0:01:06]} 16. Qb3 {
[%emt 0:01:11]} a5 {[%emt 0:01:37]} 17. a3 {[%emt 0:01:06]} axb4 {[%emt 0:00:
25]} 18. axb4 {[%emt 0:00:18]} Rab8 {[%emt 0:01:03]} 1/2-1/2

[Event "WchT 10th"]
[Site "Tsaghkadzor"]
[Date "2015.04.28"]
[Round "9.1"]
[White "Aronian, Levon"]
[Black "Shoker, Samy"]
[Result "1-0"]
[ECO "A42"]
[WhiteElo "2770"]
[BlackElo "2466"]
[PlyCount "47"]
[EventDate "2015.04.19"]
[EventType "team-tourn"]
[EventRounds "9"]
[EventCountry "ARM"]
[SourceTitle "CBM 166"]
[Source "ChessBase"]
[SourceDate "2015.05.11"]
[SourceVersion "1"]
[SourceVersionDate "2015.05.11"]
[SourceQuality "1"]
[WhiteTeam "Armenia"]
[BlackTeam "Egypt"]
[WhiteTeamCountry "ARM"]
[BlackTeamCountry "EGY"]
[TimeControl "40/5400+30:1800+30"]

1. d4 g6 2. c4 Bg7 3. e4 d6 4. Nc3 e6 5. Be3 Ne7 6. Qd2 h6 7. Bd3 Nd7 8. Nge2
b6 9. O-O a6 10. Bc2 Rb8 11. a4 Nc6 12. Rae1 Nb4 13. Bb1 c5 14. f4 Qc7 15. f5
cxd4 16. Nxd4 O-O 17. Bxh6 Qxc4 18. Bxg7 Kxg7 19. Rc1 Qc5 20. Na2 Nxa2 21. Rxc5
bxc5 22. fxe6 Ne5 23. Nf5+ gxf5 24. Qxd6 1-0

[Event "Tata Steel-A 79th"]
[Site "Wijk aan Zee"]
[Date "2017.01.14"]
[Round "1"]
[White "Harikrishna, Pentala"]
[Black "Aronian, Levon"]
[Result "1/2-1/2"]
[ECO "C89"]
[WhiteElo "2766"]
[BlackElo "2780"]
[PlyCount "97"]
[EventDate "2017.01.14"]
[EventType "tourn"]
[EventRounds "13"]
[EventCountry "NED"]
[EventCategory "21"]
[SourceTitle "CBM 177"]
[Source "ChessBase"]
[SourceDate "2017.03.16"]
[SourceVersion "1"]
[SourceVersionDate "2017.03.16"]
[SourceQuality "1"]
[TimeControl "40/6000+30:20/3000+30:900+30"]

1. e4 {[%emt 0:00:00]} e5 {[%emt 0:00:04]} 2. Nf3 {[%emt 0:00:00]} Nc6 {
[%emt 0:00:05]} 3. Bb5 {[%emt 0:00:00]} a6 {[%emt 0:00:05]} 4. Ba4 {[%emt 0:00:
00]} Nf6 {[%emt 0:00:06]} 5. O-O {[%emt 0:00:00]} Be7 {[%emt 0:00:09]} 6. Re1 {
[%emt 0:00:07]} b5 {[%emt 0:00:05]} 7. Bb3 {[%emt 0:00:07]} O-O {[%emt 0:00:06]
} 8. c3 {[%emt 0:00:35]} d5 {[%emt 0:00:06]} 9. exd5 {[%emt 0:00:05]} Nxd5 {
[%emt 0:00:04]} 10. Nxe5 {[%emt 0:00:12]} Nxe5 {[%emt 0:00:06]} 11. Rxe5 {
[%emt 0:00:16]} c6 {[%emt 0:00:05]} 12. d3 {[%emt 0:00:38]} Bd6 {[%emt 0:00:06]
} 13. Re1 {[%emt 0:00:07]} Bf5 {[%emt 0:00:07]} 14. Qf3 {[%emt 0:01:28]} Qh4 {
[%emt 0:00:34]} 15. g3 {[%emt 0:00:39]} Qh3 {[%emt 0:00:05]} 16. Be3 {[%emt 0:
02:27]} Bxd3 {[%emt 0:00:21]} 17. Nd2 {[%emt 0:14:02]} Qf5 {[%emt 0:00:21]} 18.
Bd4 {[%emt 0:01:01]} Rfe8 {[%emt 0:00:20]} 19. a4 {[%emt 0:04:00]} h6 {[%emt 0:
00:22]} 20. Kg2 {[%emt 0:00:08]} Qxf3+ {[%emt 0:00:06]} 21. Nxf3 {[%emt 0:00:
07]} Bf5 $146 {[%emt 0:03:27]} (21... Rac8 22. axb5 axb5 23. Ne5 Bxe5 24. Rxe5
Rxe5 25. Bxe5 Re8 26. Bd4 Re2 27. Bxd5 cxd5 28. b4 h5 29. Kf3 Re4 30. h4 Kh7
31. Ra7 Kg6 32. Ra6+ Kh7 33. Ra7 Kg6 34. Ra6+ Kh7 {1/2-1/2 (34) Kokarev,D 
(2636)-Tomashevsky,E (2724) Novosibirsk 2016}) 22. Be5 {[%emt 0:10:44]} Bc5 {
[%emt 0:00:50]} 23. Nd4 {[%emt 0:00:43]} Bd7 {[%emt 0:00:46]} 24. axb5 {
[%emt 0:18:38]} axb5 {[%emt 0:00:09]} 25. Rxa8 {[%emt 0:01:33]} Rxa8 {[%emt 0:
00:08]} 26. Nxb5 {[%emt 0:07:40]} Be6 {[%emt 0:00:09]} 27. Nd4 {[%emt 0:04:33]}
Bxd4 {[%emt 0:00:05]} 28. Bxd4 {[%emt 0:01:05]} Nf4+ {[%emt 0:00:10]} 29. gxf4
{[%emt 0:03:01]} Bxb3 {[%emt 0:00:06]} 30. Kg3 {[%emt 0:02:00]} f6 {[%emt 0:01:
54]} 31. h4 {[%emt 0:06:00]} h5 {[%emt 0:03:29]} 32. Bc5 {[%emt 0:02:42]} Rd8 {
[%emt 0:01:43]} 33. Bd4 {[%emt 0:00:28]} Ra8 {[%emt 0:00:17]} 34. f3 {[%emt 0:
01:07]} Ra2 {[%emt 0:04:40]} 35. Re8+ {[%emt 0:02:14]} Kh7 {[%emt 0:00:21]} 36.
Re7 {[%emt 0:05:50]} Kg8 {[%emt 0:00:52]} 37. Re2 {[%emt 0:02:11]} Kh7 {
[%emt 0:02:49]} 38. Re7 {[%emt 0:10:36]} Kg8 {[%emt 0:00:14]} 39. Rb7 {[%emt 0:
03:36]} Rxb2 {[%emt 0:01:03]} 40. Rb6 {[%emt 0:00:00]} Kh7 {[%emt 0:03:08]} 41.
Rxc6 {[%emt 0:07:50]} Rd2 {[%emt 0:01:50]} 42. Rc5 {[%emt 0:03:00]} Kg6 {
[%emt 0:00:56]} 43. f5+ {[%emt 0:01:41]} Kh7 {[%emt 0:00:18]} 44. Rc7 {[%emt 0:
00:54]} Kg8 {[%emt 0:00:05]} 45. Rc8+ {[%emt 0:00:34]} Kh7 {[%emt 0:00:06]} 46.
Rd8 {[%emt 0:01:26]} Rc2 {[%emt 0:01:29]} 47. Rd7 {[%emt 0:01:02]} Kg8 {
[%emt 0:00:13]} 48. Rd8+ {[%emt 0:00:04]} Kh7 {[%emt 0:00:04]} 49. Rd7 1/2-1/2

[Event "Tata Steel-A 79th"]
[Site "Wijk aan Zee"]
[Date "2017.01.15"]
[Round "2"]
[White "Aronian, Levon"]
[Black "Wei, Yi"]
[Result "1/2-1/2"]
[ECO "E11"]
[WhiteElo "2780"]
[BlackElo "2706"]
[PlyCount "70"]
[EventDate "2017.01.14"]
[EventType "tourn"]
[EventRounds "13"]
[EventCountry "NED"]
[EventCategory "21"]
[SourceTitle "CBM 177"]
[Source "ChessBase"]
[SourceDate "2017.03.16"]
[SourceVersion "1"]
[SourceVersionDate "2017.03.16"]
[SourceQuality "1"]
[TimeControl "40/6000+30:20/3000+30:900+30"]

1. Nf3 {[%emt 0:00:00]} d5 {[%emt 0:00:14]} 2. d4 {[%emt 0:00:00]} Nf6 {
[%emt 0:00:08]} 3. c4 {[%emt 0:00:00]} e6 {[%emt 0:00:08]} 4. g3 {[%emt 0:00:
00]} Bb4+ {[%emt 0:00:52]} 5. Bd2 {[%emt 0:00:00]} Be7 {[%emt 0:00:07]} 6. Bg2
{[%emt 0:00:00]} O-O {[%emt 0:00:11]} 7. O-O {[%emt 0:00:00]} Nbd7 {[%emt 0:00:
15]} 8. a4 {[%emt 0:00:05]} a5 {[%emt 0:14:41]} 9. Qc2 {[%emt 0:00:06]} c6 {
[%emt 0:02:48]} 10. Rc1 {[%emt 0:00:28]} Ne4 {[%emt 0:01:55]} 11. Be3 $146 {
[%emt 0:00:43]} (11. Be1 f5 12. Nbd2 Bd6 13. e3 Ra7 14. Qd1 b6 15. cxd5 cxd5
16. Nb1 Ba6 17. Na3 Qa8 18. Nb5 Bxb5 19. axb5 Rc8 20. Bf1 Rxc1 21. Rxc1 Rc7 22.
Rxc7 Bxc7 23. Qa4 Qb8 24. b4 axb4 25. Bxb4 h6 26. Qc2 Bd6 27. Qc6 Ndf6 28. Bxd6
Qxd6 29. Qc8+ Kh7 30. Ne5 Qe7 31. Qc6 Ng4 32. Nxg4 fxg4 33. Bd3 g6 34. Bxe4
dxe4 35. Qxb6 {1-0 (35) Carlsen,M (2851)-Eljanov,P (2765) Stavanger 2016})
11... f5 {[%emt 0:09:56]} 12. Nc3 {[%emt 0:02:06]} Bd6 {[%emt 0:01:08]} 13. Rd1
{[%emt 0:05:23]} Qe7 {[%emt 0:02:33]} 14. Rac1 {[%emt 0:11:31]} Ndf6 {[%emt 0:
05:05]} 15. Ne5 {[%emt 0:01:17]} Bxe5 {[%emt 0:07:09]} 16. dxe5 {[%emt 0:00:07]
} Ng4 {[%emt 0:00:07]} 17. Bd4 {[%emt 0:00:21]} c5 {[%emt 0:02:07]} 18. Nxe4 {
[%emt 0:00:06]} dxe4 {[%emt 0:25:42]} 19. Bc3 {[%emt 0:00:03]} Ra6 {[%emt 0:00:
51]} 20. h3 {[%emt 0:06:39]} Nh6 {[%emt 0:00:08]} 21. Qd2 {[%emt 0:00:22]} Nf7
{[%emt 0:04:47]} 22. f3 {[%emt 0:01:22]} exf3 {[%emt 0:00:15]} 23. exf3 {
[%emt 0:00:04]} b6 {[%emt 0:00:09]} 24. f4 {[%emt 0:04:56]} Ra7 {[%emt 0:00:36]
} 25. b3 {[%emt 0:05:10]} Rd7 {[%emt 0:05:13]} 26. Qe2 {[%emt 0:00:42]} Bb7 {
[%emt 0:00:13]} 27. Rxd7 {[%emt 0:01:42]} Qxd7 {[%emt 0:00:06]} 28. Rd1 {
[%emt 0:00:04]} Qe7 {[%emt 0:00:20]} 29. Bxb7 {[%emt 0:01:23]} Qxb7 {[%emt 0:
00:07]} 30. Kf2 {[%emt 0:04:12]} Rd8 {[%emt 0:06:19]} 31. Rxd8+ {[%emt 0:00:23]
} Nxd8 {[%emt 0:00:06]} 32. Qd3 {[%emt 0:00:02]} Nf7 {[%emt 0:00:27]} 33. g4 {
[%emt 0:00:12]} Nh6 {[%emt 0:07:38]} 34. g5 {[%emt 0:02:20]} Nf7 {[%emt 0:00:
08]} 35. h4 {[%emt 0:00:58]} g6 1/2-1/2

[Event "Tata Steel-A 79th"]
[Site "Wijk aan Zee"]
[Date "2017.01.16"]
[Round "3"]
[White "Adhiban, Baskaran"]
[Black "Aronian, Levon"]
[Result "1/2-1/2"]
[ECO "D02"]
[WhiteElo "2653"]
[BlackElo "2780"]
[PlyCount "75"]
[EventDate "2017.01.14"]
[EventType "tourn"]
[EventRounds "13"]
[EventCountry "NED"]
[EventCategory "21"]
[SourceTitle "CBM 177"]
[Source "ChessBase"]
[SourceDate "2017.03.16"]
[SourceVersion "1"]
[SourceVersionDate "2017.03.16"]
[SourceQuality "1"]
[TimeControl "40/6000+30:20/3000+30:900+30"]

1. d4 {[%emt 0:00:00]} Nf6 {[%emt 0:00:08]} 2. Nf3 {[%emt 0:00:00]} d5 {
[%emt 0:00:07]} 3. Bf4 {[%emt 0:00:16]} c5 {[%emt 0:00:21]} 4. e3 {[%emt 0:00:
09]} Nc6 {[%emt 0:00:07]} 5. c3 {[%emt 0:05:58]} e6 {[%emt 0:00:09]} 6. Nbd2 {
[%emt 0:00:08]} Be7 {[%emt 0:00:08]} 7. Ne5 {[%emt 0:01:22]} Nd7 {[%emt 0:03:
31]} 8. Bd3 {[%emt 0:01:08]} O-O {[%emt 0:08:15]} 9. Qh5 {[%emt 0:06:44]} f5 {
[%emt 0:00:45]} 10. Ndf3 {[%emt 0:05:09]} Ndxe5 {[%emt 0:17:55]} 11. Nxe5 {
[%emt 0:00:06]} Nxe5 {[%emt 0:00:42]} 12. Bxe5 {[%emt 0:00:05]} Bd6 $146 {
[%emt 0:00:24]} (12... Bd7 13. f4 Qe8 14. Qe2 c4 15. Bc2 Qg6 16. O-O b5 17. Kh1
Be8 18. g4 Qxg4 19. Qxg4 fxg4 20. Rg1 Bf6 21. Bd6 Rf7 22. Rxg4 Rd7 23. Be5 Bxe5
24. fxe5 Bh5 25. Rh4 g6 26. Rf4 Rf8 27. Rxf8+ Kxf8 28. Rf1+ Rf7 29. Rxf7+ Kxf7
30. Kg2 h6 31. e4 g5 32. exd5 exd5 33. Bf5 Ke7 34. Kg3 Bf7 35. Kg4 Be8 36. Bc8
Bg6 37. Ba6 Be8 38. Kf5 Kf7 39. e6+ Ke7 40. Ke5 Bc6 41. Bc8 a5 42. a3 {Ernst,R
(2225)-Richert Goerttler,K Germany 1997 1-0}) 13. f4 {[%emt 0:10:36]} Bxe5 {
[%emt 0:02:02]} 14. fxe5 {[%emt 0:00:04]} Bd7 {[%emt 0:00:44]} 15. O-O {
[%emt 0:07:10]} Qb6 {[%emt 0:00:54]} 16. Rf2 {[%emt 0:05:04]} Bb5 {[%emt 0:00:
33]} 17. Bxb5 {[%emt 0:10:07]} Qxb5 {[%emt 0:00:12]} 18. Raf1 {[%emt 0:01:08]}
Qd3 {[%emt 0:11:48]} 19. Rf3 {[%emt 0:00:41]} Rf7 {[%emt 0:03:47]} 20. g4 {
[%emt 0:01:56]} Raf8 {[%emt 0:04:03]} 21. gxf5 {[%emt 0:01:10]} g6 {[%emt 0:00:
17]} 22. Qg5 {[%emt 0:22:39]} Rxf5 {[%emt 0:03:57]} 23. Rxf5 {[%emt 0:00:10]}
exf5 {[%emt 0:01:28]} 24. Qf4 {[%emt 0:04:38]} Qc4 {[%emt 0:21:23]} 25. a3 {
[%emt 0:05:06]} Qe2 {[%emt 0:01:21]} 26. Rf2 {[%emt 0:02:48]} Qd1+ {[%emt 0:00:
31]} 27. Kg2 {[%emt 0:01:14]} cxd4 {[%emt 0:04:23]} 28. cxd4 {[%emt 0:00:20]}
Rc8 {[%emt 0:05:20]} 29. Qf3 {[%emt 0:00:49]} Qb3 {[%emt 0:00:10]} 30. h4 {
[%emt 0:01:01]} Rc1 {[%emt 0:05:28]} 31. h5 {[%emt 0:00:36]} Re1 {[%emt 0:00:
54]} 32. hxg6 {[%emt 0:01:23]} hxg6 {[%emt 0:00:15]} 33. Re2 {[%emt 0:02:43]}
Rc1 {[%emt 0:04:00]} 34. Qg3 {[%emt 0:00:36]} Kg7 {[%emt 0:00:10]} 35. Qg5 {
[%emt 0:03:16]} Qd1 {[%emt 0:00:14]} 36. Qe7+ {[%emt 0:00:15]} Kh6 {[%emt 0:00:
26]} 37. Qh4+ {[%emt 0:00:29]} Kg7 {[%emt 0:00:05]} 38. Qe7+ 1/2-1/2

[Event "Tata Steel-A 79th"]
[Site "Wijk aan Zee"]
[Date "2017.01.17"]
[Round "4"]
[White "Aronian, Levon"]
[Black "Nepomniachtchi, Ian"]
[Result "1/2-1/2"]
[ECO "A65"]
[WhiteElo "2780"]
[BlackElo "2767"]
[PlyCount "55"]
[EventDate "2017.01.14"]
[EventType "tourn"]
[EventRounds "13"]
[EventCountry "NED"]
[EventCategory "21"]
[SourceTitle "CBM 177"]
[Source "ChessBase"]
[SourceDate "2017.03.16"]
[SourceVersion "1"]
[SourceVersionDate "2017.03.16"]
[SourceQuality "1"]
[TimeControl "40/6000+30:20/3000+30:900+30"]

1. d4 {[%emt 0:00:00]} Nf6 {[%emt 0:00:09]} 2. c4 {[%emt 0:00:00]} g6 {[%emt 0:
00:05]} 3. f3 {[%emt 0:00:00]} e6 {[%emt 0:00:25]} 4. Nc3 {[%emt 0:00:05]} c5 {
[%emt 0:00:06]} 5. d5 {[%emt 0:00:03]} d6 {[%emt 0:00:06]} 6. e4 {[%emt 0:00:
05]} Bg7 {[%emt 0:00:33]} 7. Nge2 {[%emt 0:00:06]} exd5 {[%emt 0:00:41]} 8.
cxd5 {[%emt 0:00:04]} a6 {[%emt 0:00:06]} 9. a4 {[%emt 0:00:04]} O-O {[%emt 0:
00:10]} 10. Ng3 {[%emt 0:00:07]} Nbd7 {[%emt 0:00:09]} 11. Be2 {[%emt 0:00:18]}
Ne8 {[%emt 0:00:21]} 12. O-O {[%emt 0:00:12]} Rb8 {[%emt 0:00:12]} 13. f4 {
[%emt 0:00:48]} Nc7 {[%emt 0:01:27]} 14. e5 {[%emt 0:02:29]} dxe5 {[%emt 0:00:
23]} 15. f5 {[%emt 0:00:14]} b5 $146 {[%emt 0:00:06]} (15... Nf6 16. fxg6 fxg6
17. Bg5 Nce8 18. Nge4 Nd6 19. Bxf6 Bxf6 20. Nxd6 Qxd6 21. Ne4 Qd8 22. d6 Bf5
23. Qd5+ Kg7 24. Nxc5 Qb6 25. Kh1 Qxb2 26. Bd3 b6 27. Bxf5 {1/2-1/2 (27)
Filgueira,H (2275)-Garcia,R Buenos Aires 1995}) 16. d6 {[%emt 0:12:25]} Ne8 {
[%emt 0:00:39]} 17. axb5 {[%emt 0:00:05]} axb5 {[%emt 0:11:26]} 18. Nce4 {
[%emt 0:00:25]} c4 {[%emt 0:07:53]} 19. Bg5 {[%emt 0:01:24]} Nef6 {[%emt 0:06:
10]} 20. Kh1 {[%emt 0:07:49]} Bb7 {[%emt 0:02:07]} 21. Bf3 {[%emt 0:00:43]}
Bxe4 {[%emt 0:06:37]} 22. Nxe4 {[%emt 0:00:15]} Qb6 {[%emt 0:03:21]} 23. Qe1 {
[%emt 0:14:59]} Nxe4 {[%emt 0:11:43]} 24. Bxe4 {[%emt 0:00:05]} Bf6 {[%emt 0:
09:50]} 25. Bh6 {[%emt 0:04:18]} Bg7 {[%emt 0:02:56]} 26. Bg5 {[%emt 0:04:06]}
Bf6 {[%emt 0:00:23]} 27. Bh6 {[%emt 0:19:27]} Bg7 {[%emt 0:00:54]} 28. Bg5 {
[%emt 0:08:13]} 1/2-1/2

[Event "Tata Steel-A 79th"]
[Site "Wijk aan Zee"]
[Date "2017.01.19"]
[Round "5"]
[White "Eljanov, Pavel"]
[Black "Aronian, Levon"]
[Result "0-1"]
[ECO "E05"]
[WhiteElo "2755"]
[BlackElo "2780"]
[PlyCount "74"]
[EventDate "2017.01.14"]
[EventType "tourn"]
[EventRounds "13"]
[EventCountry "NED"]
[EventCategory "21"]
[SourceTitle "CBM 177"]
[Source "ChessBase"]
[SourceDate "2017.03.16"]
[SourceVersion "1"]
[SourceVersionDate "2017.03.16"]
[SourceQuality "1"]
[TimeControl "40/6000+30:20/3000+30:900+30"]

1. Nf3 {[%emt 0:00:00]} d5 {[%emt 0:00:07]} 2. g3 {[%emt 0:00:00]} Nf6 {
[%emt 0:00:19]} 3. Bg2 {[%emt 0:00:00]} e6 {[%emt 0:00:04]} 4. O-O {[%emt 0:00:
14]} Be7 {[%emt 0:00:04]} 5. c4 {[%emt 0:00:18]} O-O {[%emt 0:00:06]} 6. d4 {
[%emt 0:00:16]} dxc4 {[%emt 0:00:06]} 7. Qc2 {[%emt 0:00:08]} a6 {[%emt 0:00:
05]} 8. a4 {[%emt 0:00:04]} Bd7 {[%emt 0:00:28]} 9. Qxc4 {[%emt 0:00:20]} Bc6 {
[%emt 0:00:19]} 10. Bf4 {[%emt 0:00:46]} Bd6 {[%emt 0:00:40]} 11. Qc1 {[%emt 0:
00:26]} Bxf4 {[%emt 0:05:41]} 12. Qxf4 {[%emt 0:00:16]} Qd6 {[%emt 0:00:19]}
13. Qc1 {[%emt 0:02:42]} Bd5 $146 {[%emt 0:10:17]} (13... Qb4 14. a5 b6 15. Qc3
bxa5 16. Rxa5 Qb7 17. Rc1 Bd5 18. Nbd2 Nc6 19. Rxd5 Nxd5 20. Qxc6 Qxb2 21. e4
Nb4 22. Qxc7 a5 23. Rb1 Qc2 24. Qxc2 Nxc2 25. Rb2 Rfc8 26. Bf1 Rc3 27. Be2 a4
28. Bd1 a3 29. Rxc2 a2 30. Nb3 Rxc2 31. Bxc2 Ra3 32. Nfd2 a1=Q+ 33. Nxa1 Rxa1+
34. Bb1 Ra4 35. Nb3 Rb4 36. Bc2 Rc4 37. Bd1 e5 38. Kf1 exd4 39. Ke2 g6 40. Kd3
Rc3+ 41. Kxd4 Rc8 42. Ke3 h5 43. Nd4 {Donchenko,A (2582)-Warakomski,T (2474)
Legnica 2015 1-0}) 14. Nc3 {[%emt 0:14:16]} Nc6 {[%emt 0:00:39]} 15. e3 {
[%emt 0:12:59]} Nb4 {[%emt 0:00:05]} 16. Qb1 {[%emt 0:06:34]} Qe7 {[%emt 0:02:
11]} 17. a5 {[%emt 0:03:32]} c5 {[%emt 0:05:49]} 18. Nxd5 {[%emt 0:02:18]}
Nfxd5 {[%emt 0:00:32]} 19. e4 {[%emt 0:04:14]} Nc7 {[%emt 0:03:24]} 20. dxc5 {
[%emt 0:01:34]} Qxc5 {[%emt 0:00:39]} 21. e5 {[%emt 0:03:11]} Qe7 {[%emt 0:10:
25]} 22. h4 {[%emt 0:02:56]} h6 {[%emt 0:02:51]} 23. Qe4 {[%emt 0:04:50]} Nb5 {
[%emt 0:02:08]} 24. Rfc1 {[%emt 0:11:40]} Rad8 {[%emt 0:14:01]} 25. Rc4 {
[%emt 0:06:27]} Nc6 {[%emt 0:03:08]} 26. Qf4 {[%emt 0:16:20]} Rd7 {[%emt 0:03:
09]} 27. Ne1 {[%emt 0:07:40]} Nbd4 {[%emt 0:02:21]} 28. Qe3 {[%emt 0:00:48]}
Rfd8 {[%emt 0:00:09]} 29. h5 {[%emt 0:01:45]} Nf5 {[%emt 0:12:53]} 30. Qc5 {
[%emt 0:01:32]} Qg5 {[%emt 0:00:05]} 31. Bxc6 {[%emt 0:02:52]} bxc6 {[%emt 0:
00:27]} 32. Qxc6 {[%emt 0:00:13]} Qxh5 {[%emt 0:06:56]} 33. Qf3 {[%emt 0:00:50]
} Qg5 {[%emt 0:02:02]} 34. b4 {[%emt 0:01:56]} Rd2 {[%emt 0:12:36]} 35. Qf4 {
[%emt 0:00:50]} Qxf4 {[%emt 0:01:23]} 36. Rxf4 {[%emt 0:00:36]} Rb2 {[%emt 0:
00:55]} 37. Rc1 {[%emt 0:02:17]} Nd4 {[%emt 0:01:24]} 0-1